fUST/lending_fUST_20241110
["ID","MTS","AMOUNT","RATE_DAILY","PERIOD"]
[341763816,1731217839510,-343.6610985,0.00030136,2]
[341763817,1731217839519,-1369.57,0.00030136,2]
[341763818,1731217839529,-500.0,0.00030136,2]
[341763819,1731217839537,-500.0,0.00030136,2]
[341763820,1731217839546,-500.0,0.00030136,2]
[341763821,1731217839556,-500.0,0.00030136,2]
[341763822,1731217839565,-507.29679344,0.00030136,2]
[341763823,1731217839574,-409.29038594,0.00030136,2]
[341763824,1731217839582,-500.0,0.00030136,2]
[341763825,1731217839591,-500.0,0.00030136,2]
[341763826,1731217839602,-500.0,0.00030136,2]
[341763827,1731217839611,-500.0,0.00030136,2]
[341763828,1731217839620,-500.0,0.00030136,2]
[341763829,1731217839629,-500.0,0.00030136,2]
[341763830,1731217839638,-664.95,0.00030136,2]
[341763831,1731217839647,-500.0,0.00030136,2]
[341763832,1731217839657,-500.0,0.00030136,2]
[341763833,1731217839666,-500.0,0.00030136,2]
[341763834,1731217839675,-500.0,0.00030136,2]
[341763835,1731217839684,-503.79515585,0.00030136,2]
[341763836,1731217839693,-500.0,0.00030136,2]
[341763837,1731217839702,-500.0,0.00030136,2]
[341763838,1731217839713,-505.00990295,0.00030136,2]
[341763839,1731217839722,-500.0,0.00030136,2]
[341763840,1731217839731,-2336.0,0.00030136,2]
[341763841,1731217839740,-500.0,0.00030136,2]
[341763842,1731217839749,-2239.77,0.00030136,2]
[341763843,1731217839759,-2239.77,0.00030136,2]
[341763844,1731217839767,-500.0,0.00030136,2]
[341763845,1731217839776,-2239.77,0.00030136,2]
[341763846,1731217839786,-2239.77,0.00030136,2]
[341763847,1731217839795,-2239.77,0.00030136,2]
[341763848,1731217839805,-2239.77,0.00030136,2]
[341763849,1731217839814,-2239.77,0.00030136,2]
[341763850,1731217839823,-2239.77,0.00030136,2]
[341763851,1731217839832,-1091.33,0.00030136,2]
[341763852,1731217839841,-2239.77,0.00030136,2]
[341763853,1731217839853,-1091.33,0.00030136,2]
[341763854,1731217839862,-2239.77,0.00030136,2]
[341763855,1731217839871,-1091.33,0.00030136,2]
[341763856,1731217839880,-500.0,0.00030136,2]
[341763857,1731217839889,-2239.77,0.00030136,2]
[341763859,1731217839898,-1091.33,0.00030136,2]
[341763860,1731217839907,-500.0,0.00030136,2]
[341763861,1731217839916,-2239.77,0.00030136,2]
[341763862,1731217839925,-500.0,0.00030136,2]
[341763863,1731217839934,-1091.33,0.00030136,2]
[341763864,1731217839943,-500.0,0.00030136,2]
[341763865,1731217839953,-1091.33,0.00030136,2]
[341763866,1731217839962,-500.0,0.00030136,2]
[341763867,1731217839971,-1091.33,0.00030136,2]
[341763868,1731217839980,-500.0,0.00030136,2]
[341763869,1731217839989,-1091.33,0.00030136,2]
[341763870,1731217839998,-500.0,0.00030136,2]
[341763871,1731217840007,-1091.33,0.00030136,2]
[341763872,1731217840017,-500.0,0.00030136,2]
[341763873,1731217840026,-500.0,0.00030136,2]
[341763874,1731217840035,-1091.33,0.00030136,2]
[341763875,1731217840044,-240.85469574,0.00030136,2]
[341763876,1731217840053,-1091.33,0.00030136,2]
[341763877,1731217840062,-1091.33,0.00030136,2]
[341763878,1731217840071,-1091.33,0.00030136,2]
[341763879,1731217840081,-505.12610231,0.00030136,2]
[341763880,1731217840090,-500.0,0.00030136,2]
[341763881,1731217840100,-500.0,0.00030136,2]
[341763882,1731217840109,-500.0,0.00030136,2]
[341763883,1731217840118,-500.0,0.00030136,2]
[341763884,1731217840134,-500.0,0.00030136,2]
[341763885,1731217840144,-384.6704633,0.00030136,2]
[341763886,1731217840153,-500.0,0.00030136,2]
[341763887,1731217840166,-500.0,0.00030136,2]
[341763888,1731217840175,-500.0,0.00030136,2]
[341763889,1731217840185,-500.0,0.00030136,2]
[341763890,1731217840193,-533.1,0.00030136,2]
[341763891,1731217840204,-500.0,0.00030136,2]
[341763892,1731217840214,-500.0,0.00030136,2]
[341763893,1731217840223,-500.0,0.00030136,2]
[341763894,1731217840233,-500.0,0.00030136,2]
[341763895,1731217840242,-3561.29,0.00030136,120]
[341763896,1731217840253,-1028.13,0.00030136,2]
[341763897,1731217840262,-500.0,0.00030136,2]
[341763898,1731217840271,-500.0,0.00030136,2]
[341763899,1731217840280,-500.0,0.00030136,2]
[341763900,1731217840289,-500.0,0.00030136,2]
[341763901,1731217840298,-500.0,0.00030136,120]
[341763902,1731217840307,-500.0,0.00030136,2]
[341763903,1731217840316,-500.0,0.00030136,2]
[341763904,1731217840326,-500.0,0.00030136,2]
[341763905,1731217840335,-500.0,0.00030136,2]
[341763906,1731217840346,-500.0,0.00030136,2]
[341763907,1731217840356,-500.0,0.00030136,2]
[341763908,1731217840370,-500.0,0.00030136,2]
[341763909,1731217840379,-500.0,0.00030136,2]
[341763910,1731217840389,-500.0,0.00030136,2]
[341763911,1731217840398,-500.0,0.00030136,2]
[341763912,1731217840407,-500.0,0.00030136,2]
[341763913,1731217840417,-500.0,0.00030136,2]
[341763914,1731217840426,-537.58047353,0.00030136,2]
[341763915,1731217840436,-500.0,0.00030136,2]
[341763916,1731217840446,-500.0,0.00030136,2]
[341763917,1731217840455,-500.0,0.00030136,2]
[341763919,1731217840464,-500.0,0.00030136,2]
[341763921,1731217840473,-500.0,0.00030136,2]
[341763923,1731217840482,-500.0,0.00030136,2]
[341763924,1731217840492,-500.0,0.00030136,2]
[341763926,1731217840501,-500.0,0.00030136,2]
[341763928,1731217840510,-500.0,0.00030136,2]
[341763930,1731217840519,-291.42833312,0.00030136,2]
[341763932,1731217840528,-498.93251766,0.00030136,2]
[341763934,1731217840537,-500.0,0.00030136,2]
[341763936,1731217840548,-500.0,0.00030136,2]
[341763938,1731217840558,-500.0,0.00030136,2]
[341763941,1731217840568,-500.0,0.00030136,2]
[341763942,1731217840577,-502.59020049,0.00030136,2]
[341763944,1731217840586,-500.0,0.00030136,2]
[341763947,1731217840596,-500.0,0.00030136,2]
[341763957,1731217840692,-500.0,0.00030136,2]
[341763959,1731217840702,-500.0,0.00030136,2]
[341763961,1731217840711,-505.76,0.00030136,2]
[341763963,1731217840721,-500.0,0.00030173,5]
[341763965,1731217840730,-500.0,0.00030173,5]
[341763967,1731217840740,-500.0,0.00030173,5]
[341763969,1731217840749,-503.44774057,0.00030173,5]
[341763971,1731217840758,-190.70986589,0.00030173,2]
[341763973,1731217840767,-500.0,0.00030173,5]
[341763975,1731217840777,-500.0,0.00030173,5]
[341763977,1731217840787,-501.57030107,0.00030173,5]
[341763979,1731217840797,-500.4993911,0.00030173,5]
[341763981,1731217840807,-500.0,0.00030173,5]
[341763983,1731217840816,-500.0,0.00030173,2]
[341763985,1731217840825,-736.02309916,0.0003031,2]
[341763987,1731217840837,-1091.33,0.00030398,2]
[341763989,1731217840846,-2239.77,0.00030399,2]
[341763991,1731217840855,-8222.195061,0.000304,2]
[341763993,1731217840864,-2239.77,0.00030408,2]
[341763995,1731217840873,-1091.33,0.00030408,2]
[341763997,1731217840883,-500.0,0.00030409,7]
[341763999,1731217840892,-2239.77,0.00030409,2]
[341764001,1731217840902,-2239.77,0.00030409,2]
[341764003,1731217840911,-2239.77,0.00030409,2]
[341764005,1731217840920,-2239.77,0.00030409,2]
[341764007,1731217840929,-2239.77,0.00030409,2]
[341764009,1731217840938,-1091.33,0.00030409,2]
[341764011,1731217840948,-1091.33,0.00030409,2]
[341764013,1731217840958,-1091.33,0.00030409,2]
[341764015,1731217840967,-1091.33,0.00030409,2]
[341764017,1731217840977,-1091.33,0.00030409,2]
[341764019,1731217840987,-1091.33,0.00030409,2]
[341764021,1731217840996,-1091.33,0.00030409,2]
[341764023,1731217841007,-1091.33,0.00030409,2]
[341764025,1731217841018,-1091.38836687,0.00030409,2]
[341764027,1731217841028,-500.0,0.0003041,2]
[341764029,1731217841038,-500.0,0.0003041,2]
[341764031,1731217841048,-500.0,0.0003041,15]
[341764033,1731217841059,-520.88317783,0.0003041,2]
[341764035,1731217841069,-500.0,0.0003041,2]
[341764038,1731217841082,-331.69570707,0.0003041,2]
[341764039,1731217841103,-449.34581962,0.0003041,2]
[341764041,1731217841124,-525.84525482,0.0003041,2]
[341764043,1731217841144,-500.0,0.0003041,2]
[341764045,1731217841167,-500.0,0.0003041,2]
[341764048,1731217841179,-500.0,0.0003041,2]
[341764050,1731217841189,-500.0,0.0003041,2]
[341764051,1731217841199,-509.18810075,0.0003041,2]
[341764054,1731217841209,-500.0,0.0003041,2]
[341764056,1731217841219,-500.0,0.0003041,2]
[341764058,1731217841229,-509.42744952,0.0003041,2]
[341764060,1731217841240,-500.0,0.0003041,2]
[341764062,1731217841251,-500.0,0.0003041,2]
[341764064,1731217841262,-520.67684581,0.0003041,2]
[341764066,1731217841272,-512.9196487,0.0003041,2]
[341764068,1731217841282,-374.93379088,0.0003041,2]
[341764070,1731217841291,-509.30777957,0.0003041,2]
[341764072,1731217841302,-306.67789067,0.0003041,2]
[341764074,1731217841312,-506.88833391,0.0003041,2]
[341764076,1731217841322,-500.0,0.0003041,2]
[341764078,1731217841332,-500.0,0.0003041,2]
[341764080,1731217841341,-500.0,0.0003041,2]
[341764082,1731217841355,-430.33779674,0.0003041,2]
[341764084,1731217841366,-500.0,0.0003041,2]
[341764086,1731217841375,-500.0,0.0003041,2]
[341764088,1731217841394,-500.0,0.0003041,2]
[341764089,1731217841420,-500.0,0.0003041,2]
[341764091,1731217841431,-500.0,0.0003041,2]
[341764094,1731217841441,-500.0,0.0003041,2]
[341764096,1731217841454,-507.95915238,0.0003041,2]
[341764097,1731217841485,-581.89,0.0003041,2]
[341764100,1731217841496,-500.0,0.0003041,2]
[341764101,1731217841507,-500.0,0.0003041,2]
[341764104,1731217841516,-500.0,0.0003041,2]
[341764105,1731217841526,-500.0,0.0003041,2]
[341764108,1731217841541,-503.02581324,0.0003041,2]
[341764110,1731217841554,-500.0,0.0003041,2]
[341764112,1731217841564,-500.0,0.0003041,2]
[341764114,1731217841573,-500.0,0.0003041,2]
[341764115,1731217841582,-505.6056879,0.0003041,2]
[341764118,1731217841592,-506.76165191,0.0003041,2]
[341764120,1731217841603,-509.00114809,0.0003041,2]
[341764121,1731217841613,-607.81,0.0003041,2]
[341764123,1731217841623,-500.0,0.0003041,2]
[341764126,1731217841645,-500.0,0.0003041,2]
[341764128,1731217841662,-524.2664288,0.0003041,2]
[341764130,1731217841671,-500.0,0.0003041,2]
[341764132,1731217841681,-500.0,0.0003041,2]
[341764134,1731217841691,-500.0,0.0003041,2]
[341764136,1731217841701,-502.95133685,0.0003041,2]
[341764138,1731217841711,-500.0,0.0003041,2]
[341764140,1731217841720,-500.0,0.0003041,2]
[341764142,1731217841730,-500.0,0.0003041,2]
[341764144,1731217841739,-500.0,0.0003041,2]
[341764146,1731217841749,-500.0,0.0003041,2]
[341764148,1731217841758,-3257.78,0.0003041,2]
[341764150,1731217841768,-500.0,0.0003041,2]
[341764152,1731217841778,-499.11716912,0.0003041,2]
[341764154,1731217841791,-1755.26,0.0003041,2]
[341764156,1731217841808,-500.0,0.0003041,2]
[341764158,1731217841823,-500.0,0.0003041,2]
[341764160,1731217841833,-1032.04,0.0003041,2]
[341764162,1731217841844,-500.0,0.0003041,2]
[341764164,1731217841857,-222.291453,0.0003041,2]
[341764166,1731217841870,-500.0,0.0003041,2]
[341764168,1731217841880,-329.93242616,0.0003041,2]
[341764170,1731217841889,-647.32,0.0003041,2]
[341764172,1731217841899,-498.70162293,0.0003041,2]
[341764174,1731217841908,-500.0,0.0003041,2]
[341764176,1731217841918,-492.95,0.0003041,2]
[341764178,1731217841932,-610.47796792,0.0003041,2]
[341764180,1731217841943,-636.78,0.0003041,2]
[341764182,1731217841952,-500.0,0.0003041,2]
[341764184,1731217841963,-512.04210063,0.0003041,2]
[341764186,1731217841972,-506.14731943,0.0003041,2]
[341764188,1731217841983,-508.29986673,0.0003041,2]
[341764190,1731217841994,-500.0,0.0003041,2]
[341764192,1731217842003,-443.72,0.0003041,2]
[341764194,1731217842013,-250.0,0.0003041,2]
[341764196,1731217842023,-500.0,0.0003041,2]
[341764198,1731217842032,-500.0,0.0003041,2]
[341764200,1731217842043,-500.0,0.0003041,2]
[341764202,1731217842053,-500.0,0.0003041,2]
[341764204,1731217842063,-157.61802115,0.0003041,2]
[341764206,1731217842073,-500.0,0.0003041,2]
[341764208,1731217842082,-500.0,0.0003041,2]
[341764210,1731217842093,-508.98404572,0.0003041,2]
[341764212,1731217842104,-500.0,0.0003041,2]
[341764214,1731217842113,-500.0,0.0003041,2]
[341764216,1731217842122,-500.0,0.0003041,2]
[341764218,1731217842132,-500.0,0.0003041,2]
[341764220,1731217842144,-500.0,0.0003041,2]
[341764222,1731217842154,-500.0,0.0003041,2]
[341764224,1731217842163,-500.0,0.0003041,2]
[341764226,1731217842173,-500.0,0.0003041,2]
[341764228,1731217842182,-500.0,0.0003041,2]
[341764230,1731217842192,-500.0,0.0003041,2]
[341764232,1731217842201,-500.0,0.0003041,2]
[341764235,1731217842211,-581.61365608,0.0003041,2]
[341764237,1731217842220,-500.0,0.0003041,2]
[341764239,1731217842230,-500.0,0.0003041,2]
[341764241,1731217842239,-500.0,0.0003041,2]
[341764243,1731217842248,-508.44562461,0.0003041,2]
[341764245,1731217842258,-500.0,0.0003041,2]
[341764247,1731217842267,-500.0,0.0003041,2]
[341764249,1731217842275,-168.75788187,0.0003041,2]
[341764251,1731217842285,-500.0,0.0003041,2]
[341764253,1731217842294,-500.0,0.0003041,2]
[341764255,1731217842303,-500.0,0.0003041,2]
[341764257,1731217842313,-534.47533925,0.0003041,2]
[341764259,1731217842322,-500.0,0.0003041,2]
[341764260,1731217842331,-500.0,0.0003041,2]
[341764262,1731217842340,-500.0,0.0003041,2]
[341764264,1731217842351,-241.67489822,0.0003041,2]
[341764266,1731217842360,-579.58734664,0.0003041,2]
[341764268,1731217842369,-1775.0,0.0003041,2]
[341764270,1731217842378,-500.0,0.0003041,2]
[341764272,1731217842386,-500.0,0.0003041,2]
[341764274,1731217842396,-1701.99,0.0003041,2]
[341764276,1731217842405,-652.37,0.0003041,2]
[341764278,1731217842414,-500.0,0.0003041,2]
[341764280,1731217842423,-500.0,0.0003041,2]
[341764282,1731217842433,-500.0,0.0003041,2]
[341764284,1731217842443,-4438.43,0.0003041,2]
[341764286,1731217842452,-500.0,0.0003041,2]
[341764288,1731217842461,-424.80320684,0.0003041,2]
[341764290,1731217842470,-458.4298966,0.0003041,2]
[341764292,1731217842480,-310.16,0.0003041,2]
[341764294,1731217842490,-500.0,0.0003041,2]
[341764296,1731217842500,-500.0,0.0003041,2]
[341764298,1731217842509,-1369.57,0.0003041,2]
[341764300,1731217842518,-500.0,0.0003041,2]
[341764302,1731217842527,-500.0,0.0003041,2]
[341764304,1731217842536,-517.25639911,0.0003041,2]
[341764306,1731217842545,-500.0,0.0003041,2]
[341764308,1731217842554,-500.0,0.0003041,2]
[341764310,1731217842564,-500.0,0.0003041,2]
[341764312,1731217842573,-500.0,0.0003041,2]
[341764314,1731217842582,-500.0,0.0003041,2]
[341764316,1731217842592,-500.0,0.0003041,2]
[341764318,1731217842603,-664.95,0.0003041,2]
[341764320,1731217842613,-500.0,0.0003041,2]
[341764322,1731217842622,-500.0,0.0003041,2]
[341764324,1731217842631,-500.0,0.0003041,2]
[341764326,1731217842640,-530.05533026,0.0003041,2]
[341764327,1731217842650,-500.0,0.0003041,2]
[341764328,1731217842659,-213.43973121,0.0003041,2]
[341764329,1731217842668,-500.0,0.0003041,2]
[341764330,1731217842678,-500.0,0.0003041,2]
[341764331,1731217842687,-500.0,0.0003041,2]
[341764332,1731217842697,-500.0,0.0003041,2]
[341764333,1731217842706,-526.85153944,0.0003041,2]
[341764334,1731217842715,-500.0,0.0003041,2]
[341764335,1731217842725,-533.16391366,0.0003041,2]
[341764336,1731217842734,-584.17,0.0003041,2]
[341764337,1731217842743,-507.57734434,0.0003041,2]
[341764338,1731217842753,-533.1,0.0003041,2]
[341764339,1731217842762,-552.62620479,0.0003041,2]
[341764340,1731217842771,-500.0,0.0003041,2]
[341764341,1731217842780,-507.33015423,0.0003041,2]
[341764342,1731217842790,-500.0,0.0003041,2]
[341764344,1731217842799,-1028.13,0.0003041,2]
[341764345,1731217842808,-500.0,0.0003041,2]
[341764347,1731217842818,-513.4950478,0.0003041,2]
[341764348,1731217842827,-390.18135621,0.0003041,2]
[341764349,1731217842837,-500.0,0.0003041,2]
[341764350,1731217842847,-500.0,0.0003041,120]
[341764351,1731217842857,-500.0,0.0003041,2]
[341764352,1731217842866,-500.0,0.0003041,2]
[341764353,1731217842876,-500.0,0.0003041,2]
[341764354,1731217842885,-500.0,0.0003041,2]
[341764355,1731217842894,-437.44,0.0003041,2]
[341764357,1731217842904,-500.0,0.0003041,2]
[341764358,1731217842913,-513.4533676,0.0003041,2]
[341764360,1731217842922,-500.0,0.0003041,2]
[341764362,1731217842931,-500.0,0.0003041,2]
[341764364,1731217842940,-527.72038866,0.0003041,2]
[341764366,1731217842949,-500.0,0.0003041,2]
[341764368,1731217842958,-500.0,0.0003041,2]
[341764370,1731217842967,-502.63990946,0.0003041,2]
[341764372,1731217842977,-500.0,0.0003041,2]
[341764374,1731217842985,-500.0,0.0003041,2]
[341764376,1731217842994,-500.0,0.0003041,2]
[341764378,1731217843004,-500.0,0.0003041,2]
[341764380,1731217843013,-500.0,0.0003041,2]
[341764391,1731217843104,-500.0,0.0003041,2]
[341764393,1731217843114,-500.0,0.0003041,2]
[341764395,1731217843124,-500.0,0.0003041,2]
[341764397,1731217843133,-500.0,0.0003041,2]
[341764399,1731217843145,-500.0,0.0003041,2]
[341764401,1731217843154,-500.0,0.0003041,2]
[341764404,1731217843164,-7240.8058996,0.00030412,2]
[341764405,1731217843173,-2239.77,0.00030437,2]
[341764407,1731217843184,-2239.77,0.00030437,2]
[341764410,1731217843194,-2239.77,0.00030437,2]
[341764411,1731217843203,-2239.77,0.00030437,2]
[341764414,1731217843213,-2239.85936602,0.00030437,2]
[341764416,1731217843223,-1999.0,0.00030438,2]
[341764418,1731217843233,-1999.0,0.00030438,2]
[341764420,1731217843242,-1999.0,0.00030438,2]
[341764422,1731217843252,-1999.0,0.00030438,2]
[341764424,1731217843262,-1999.0,0.00030438,2]
[341764426,1731217843271,-1999.0,0.00030438,2]
[341764428,1731217843280,-1999.0,0.00030438,2]
[341764430,1731217843289,-1999.0,0.00030438,2]
[341764432,1731217843298,-1999.0,0.00030438,2]
[341764434,1731217843307,-1999.0,0.00030438,2]
[341764436,1731217843317,-1999.0,0.00030438,2]
[341764438,1731217843326,-1999.0,0.00030438,2]
[341764440,1731217843335,-1999.0,0.00030438,2]
[341764442,1731217843344,-1999.0,0.00030438,2]
[341764444,1731217843360,-1999.0,0.00030438,2]
[341764446,1731217843370,-1778.92034504,0.00030438,2]
[341764448,1731217843378,-500.0,0.00030473,5]
[341764450,1731217843388,-501.04400432,0.00030473,5]
[341764452,1731217843396,-503.9119203,0.00030473,5]
[341764454,1731217843406,-500.83954123,0.00030473,5]
[341764456,1731217843418,-507.33145432,0.00030473,5]
[341764457,1731217843428,-500.0,0.00030473,5]
[341764458,1731217843438,-500.0,0.00030473,5]
[341764459,1731217843446,-506.90178019,0.00030473,5]
[341764460,1731217843455,-500.0,0.00030473,5]
[341764461,1731217843464,-8222.19506097,0.00030493,2]
[341764462,1731217843473,-736.02309916,0.00030584,2]
[341764463,1731217843483,-168.675,0.0003061,30]
[341764464,1731217843492,-8222.19506097,0.00030675,2]
[341764465,1731217843502,-500.0,0.00030684,15]
[341764467,1731217843511,-500.0,0.00030684,2]
[341764469,1731217843520,-500.0,0.00030684,2]
[341764470,1731217843529,-500.0,0.00030684,2]
[341764472,1731217843538,-500.0,0.00030684,2]
[341764473,1731217843547,-408.66,0.00030684,2]
[341764474,1731217843556,-500.0,0.00030684,2]
[341764475,1731217843566,-512.04136664,0.00030684,2]
[341764476,1731217843575,-283.72476953,0.00030684,2]
[341764477,1731217843585,-500.0,0.00030684,2]
[341764478,1731217843602,-500.0,0.00030684,2]
[341764479,1731217843611,-500.0,0.00030684,2]
[341764480,1731217843620,-500.0,0.00030684,2]
[341764481,1731217843630,-508.07613507,0.00030684,2]
[341764482,1731217843640,-500.0,0.00030684,2]
[341764483,1731217843650,-500.0,0.00030684,2]
[341764484,1731217843659,-500.0,0.00030684,2]
[341764485,1731217843668,-373.97682757,0.00030684,2]
[341764486,1731217843678,-500.0,0.00030684,2]
[341764487,1731217843687,-500.0,0.00030684,2]
[341764488,1731217843697,-500.0,0.00030684,2]
[341764489,1731217843706,-506.81905352,0.00030684,2]
[341764490,1731217843715,-500.0,0.00030684,2]
[341764491,1731217843725,-215.86875417,0.00030684,2]
[341764492,1731217843734,-500.0,0.00030684,2]
[341764493,1731217843744,-3257.78,0.00030684,2]
[341764494,1731217843753,-506.21589926,0.00030684,2]
[341764495,1731217843762,-1755.26,0.00030684,2]
[341764496,1731217843772,-617.60682414,0.00030684,2]
[341764497,1731217843781,-1032.04,0.00030684,2]
[341764498,1731217843791,-221.54930797,0.00030684,2]
[341764499,1731217843800,-500.0,0.00030684,2]
[341764500,1731217843810,-500.0,0.00030684,2]
[341764501,1731217843819,-500.0,0.00030684,2]
[341764503,1731217843829,-500.0,0.00030684,2]
[341764504,1731217843838,-500.0,0.00030684,2]
[341764505,1731217843847,-503.98862093,0.00030684,2]
[341764506,1731217843856,-500.0,0.00030684,2]
[341764507,1731217843866,-500.0,0.00030684,2]
[341764508,1731217843876,-500.0,0.00030684,2]
[341764509,1731217843885,-500.0,0.00030684,2]
[341764510,1731217843894,-500.0,0.00030684,2]
[341764511,1731217843903,-500.0,0.00030684,2]
[341764512,1731217843912,-500.0,0.00030684,2]
[341764513,1731217843922,-500.0,0.00030684,2]
[341764514,1731217843931,-161.76408677,0.00030684,2]
[341764515,1731217843940,-500.0,0.00030684,2]
[341764516,1731217843949,-500.0,0.00030684,2]
[341764517,1731217843959,-532.66076172,0.00030684,2]
[341764518,1731217843968,-500.0,0.00030684,2]
[341764519,1731217843977,-500.0,0.00030684,2]
[341764520,1731217843987,-506.53892453,0.00030684,2]
[341764521,1731217843996,-376.15411555,0.00030684,2]
[341764522,1731217844006,-500.0,0.00030684,2]
[341764523,1731217844016,-500.0,0.00030684,2]
[341764524,1731217844025,-506.13107154,0.00030684,2]
[341764525,1731217844034,-511.47638509,0.00030684,2]
[341764526,1731217844044,-1775.0,0.00030684,2]
[341764527,1731217844054,-590.99497339,0.00030684,2]
[341764529,1731217844063,-521.76336307,0.00030684,2]
[341764530,1731217844072,-1701.99,0.00030684,2]
[341764533,1731217844082,-652.37,0.00030684,2]
[341764534,1731217844091,-517.0132446,0.00030684,2]
[341764536,1731217844102,-500.0,0.00030684,2]
[341764537,1731217844111,-500.0,0.00030684,2]
[341764539,1731217844120,-4438.43,0.00030684,2]
[341764540,1731217844130,-500.0,0.00030684,2]
[341764542,1731217844140,-500.0,0.00030684,2]
[341764544,1731217844150,-500.0,0.00030684,2]
[341764545,1731217844160,-500.0,0.00030684,2]
[341764548,1731217844170,-1369.57,0.00030684,2]
[341764549,1731217844179,-500.0,0.00030684,2]
[341764552,1731217844189,-368.16,0.00030684,2]
[341764553,1731217844198,-500.0,0.00030684,2]
[341764555,1731217844208,-526.57292408,0.00030684,2]
[341764558,1731217844220,-664.95,0.00030684,2]
[341764559,1731217844229,-500.0,0.00030684,2]
[341764562,1731217844239,-425.14644357,0.00030684,2]
[341764563,1731217844248,-500.0,0.00030684,2]
[341764566,1731217844257,-500.0,0.00030684,2]
[341764567,1731217844268,-508.86533384,0.00030684,2]
[341764570,1731217844278,-641.6,0.00030684,2]
[341764571,1731217844287,-500.0,0.00030684,2]
[341764574,1731217844297,-500.0,0.00030684,2]
[341764576,1731217844306,-574.7772369,0.00030684,2]
[341764578,1731217844315,-533.1,0.00030684,2]
[341764580,1731217844324,-535.99872703,0.00030684,2]
[341764582,1731217844334,-201.12263081,0.00030684,2]
[341764584,1731217844343,-1028.13,0.00030684,2]
[341764585,1731217844354,-341.47029395,0.00030684,2]
[341764587,1731217844363,-300.32657972,0.00030684,2]
[341764590,1731217844373,-500.0,0.00030684,120]
[341764591,1731217844382,-506.7183527,0.00030684,2]
[341764594,1731217844391,-500.0,0.00030684,2]
[341764595,1731217844400,-500.0,0.00030684,2]
[341764597,1731217844409,-500.0,0.00030684,2]
[341764600,1731217844418,-478.63662479,0.00030684,2]
[341764602,1731217844427,-500.0,0.00030684,2]
[341764604,1731217844436,-548.57037628,0.00030684,2]
[341764605,1731217844446,-500.0,0.00030684,2]
[341764607,1731217844455,-512.93314489,0.00030684,2]
[341764610,1731217844464,-525.76424506,0.00030684,2]
[341764612,1731217844474,-500.0,0.00030684,2]
[341764613,1731217844483,-500.0,0.00030684,2]
[341764615,1731217844492,-271.39647256,0.00030684,2]
[341764618,1731217844502,-500.0,0.00030684,2]
[341764620,1731217844511,-500.0,0.00030684,2]
[341764621,1731217844520,-500.0,0.00030684,2]
[341764624,1731217844530,-500.0,0.00030684,2]
[341764626,1731217844540,-500.0,0.00030684,2]
[341764628,1731217844550,-312.0,0.000307,3]
[341764630,1731217844558,-301.630352,0.0003074,30]
[341764631,1731217844567,-153.0,0.00030767,30]
[341764634,1731217844577,-153.0,0.00030767,30]
[341764636,1731217844587,-153.0,0.00030767,30]
[341764638,1731217844596,-331.86982736,0.00030777,2]
[341764639,1731217844607,-8222.19506097,0.00030858,2]
[341764641,1731217844617,-736.02309916,0.00030858,2]